bitfinex/quotes_SOLUSD_20240717
["timestamp","ask_amount","ask_price","bid_price","bid_amount"]
[1721237768942,0.811115,157.11,157.1,89.6921]
[1721237769138,0.811115,157.11,157.1,74.1121]
[1721237770431,0.811115,157.11,157.1,89.6921]
[1721237771023,0.811115,157.11,157.1,108.8321]
[1721237771228,0.811115,157.11,157.1,153.8321]
[1721237771851,0.811115,157.11,157.1,108.8321]
[1721237772133,0.811115,157.11,157.1,89.6921]
[1721237772440,0.811115,157.11,157.1,58.1921]
[1721237772646,0.811115,157.11,157.1,73.7721]
[1721237773834,0.811115,157.11,157.1,74.1121]
[1721237778535,0.811115,157.11,157.1,73.9421]
[1721237778947,0.811115,157.11,157.1,74.1121]
[1721237779745,0.811115,157.11,157.1,93.2521]
[1721237779951,15.422,157.2,157.19,22.266]
[1721237780128,15.422,157.2,157.19,37.846]
[1721237780631,6.3593,157.25,157.21,22.2624]
[1721237780848,6.3593,157.25,157.21,37.8424]
[1721237781053,6.3593,157.25,157.21,21.7624]
[1721237781729,6.3593,157.25,157.21,30.9816]
[1721237782649,6.3593,157.25,157.21,37.3423]
[1721237782853,37.6115,157.26,157.21,37.3423]
[1721237782854,43.9705,157.26,157.21,37.3423]
[1721237783061,45.0,157.25,157.21,37.3423]
[1721237783351,51.3593,157.25,157.21,37.3423]
[1721237784441,6.3597,157.24,157.21,30.9816]
[1721237784633,6.3597,157.24,157.21,15.4016]
[1721237784962,6.3597,157.24,157.2,21.9412]
[1721237786066,66.9394,157.25,157.2,21.9412]
[1721237786359,66.9394,157.25,157.2,15.58]
[1721237786542,66.9394,157.25,157.21,6.3607]
[1721237786743,51.3594,157.25,157.21,6.3607]
[1721237787136,51.3594,157.25,157.21,21.9407]
[1721237788454,6.3597,157.24,157.21,15.58]
[1721237788657,6.3597,157.24,157.2,37.8441]
[1721237789030,66.9394,157.25,157.2,37.8441]
[1721237789227,60.58,157.25,157.19,21.9416]
[1721237789431,15.58,157.24,157.19,6.3616]
[1721237789651,60.58,157.23,157.17,15.9056]
[1721237789855,21.9403,157.23,157.19,6.3616]
[1721237790039,45.0,157.22,157.19,6.3616]
[1721237790240,45.0,157.22,157.18,21.9419]
[1721237790444,45.0,157.22,157.19,6.3616]
[1721237790631,51.3606,157.22,157.17,31.4856]
[1721237790830,21.941,157.21,157.17,22.2679]
[1721237791035,45.0,157.2,157.17,22.2679]
[1721237791347,77.1004,157.2,157.15,15.58]
[1721237791659,21.8976,157.19,157.14,15.909]
[1721237791951,51.3624,157.18,157.14,37.8527]
[1721237792538,51.3622,157.18,157.14,37.8527]
[1721237792964,45.0,157.18,157.14,37.8527]
[1721237793251,45.0,157.18,157.15,6.3633]
[1721237793751,6.3626,157.17,157.14,15.909]
[1721237793938,45.0,157.16,157.13,6.3638]
[1721237794355,45.0,157.16,157.14,6.3636]
[1721237794556,15.58,157.18,157.13,15.58]
[1721237794862,45.0,157.17,157.14,6.3637]
[1721237796877,21.8976,157.19,157.14,15.9089]
[1721237797161,45.0,157.18,157.14,31.4889]
[1721237797536,45.0,157.18,157.15,6.3632]
[1721237798354,21.8976,157.19,157.16,6.3628]
[1721237798560,16.5204,157.2,157.16,15.9069]
[1721237798858,16.5204,157.2,157.17,6.3625]
[1721237799047,22.8817,157.2,157.16,22.2697]
[1721237799251,38.4617,157.2,157.16,22.2697]
[1721237799451,6.3614,157.23,157.19,6.3614]
[1721237799452,6.3603,157.23,157.19,6.3614]
[1721237799642,6.3603,157.23,157.18,15.9048]
[1721237799643,15.58,157.22,157.18,15.9048]
[1721237799837,15.1984,157.24,157.17,6.3624]
[1721237799838,21.941,157.21,157.17,6.3624]
[1721237800043,15.58,157.2,157.17,6.3624]
[1721237800938,15.58,157.2,157.18,6.362]
[1721237801256,15.58,157.21,157.17,15.906]
[1721237801441,15.58,157.21,157.19,6.3617]
[1721237801644,15.58,157.21,157.18,6.362]
[1721237802646,6.3601,157.23,157.19,6.3616]
[1721237802845,15.58,157.21,157.19,6.3616]
[1721237803251,15.58,157.21,157.18,6.3619]
[1721237803840,45.0,157.22,157.19,6.3616]
[1721237804165,60.58,157.22,157.19,6.3616]
[1721237804359,15.1984,157.24,157.2,6.361]
[1721237804566,60.58,157.23,157.2,6.361]
[1721237804779,60.58,157.23,157.21,6.3609]
[1721237804780,15.58,157.23,157.21,6.3609]
[1721237804992,15.58,157.22,157.19,22.265]
[1721237805845,15.58,157.22,157.19,15.9036]
[1721237806278,15.58,157.22,157.18,6.362]
[1721237806279,15.58,157.21,157.18,6.362]
[1721237806761,15.58,157.21,157.19,6.3616]
[1721237807464,15.1984,157.24,157.15,15.9076]
[1721237807465,15.58,157.2,157.15,15.9076]
[1721237807672,15.58,157.19,157.16,6.3626]
[1721237808565,60.58,157.2,157.17,6.3624]
[1721237809062,60.58,157.2,157.18,6.3621]
[1721237809269,15.58,157.21,157.17,15.9059]
[1721237809471,15.58,157.22,157.17,31.4859]
[1721237809665,60.58,157.21,157.17,15.9059]
[1721237809861,60.58,157.21,157.18,6.3618]
[1721237810080,45.0,157.21,157.19,6.3614]
[1721237810777,21.9402,157.23,157.19,6.3614]
[1721237810778,45.0,157.22,157.19,6.3614]
[1721237811756,6.3602,157.23,157.19,6.3614]
[1721237811959,21.9402,157.23,157.19,6.3614]
[1721237812674,21.9405,157.22,157.18,6.3619]
[1721237813665,15.58,157.22,157.19,6.3617]
[1721237814173,51.3609,157.21,157.17,37.8481]
[1721237814378,66.9409,157.21,157.17,22.2681]
[1721237815657,60.58,157.21,157.18,6.3621]
[1721237819797,60.58,157.21,157.19,6.3617]
[1721237820265,45.0,157.21,157.18,6.3619]
[1721237821294,60.58,157.21,157.18,6.3619]
[1721237821995,60.58,157.21,157.17,15.9059]
[1721237821996,15.1984,157.24,157.17,31.8126]
[1721237822299,15.1984,157.24,157.22,21.9401]
[1721237822492,15.1984,157.24,157.22,6.3601]
[1721237822992,21.9391,157.26,157.22,6.3601]
[1721237823609,6.3593,157.25,157.22,6.3601]
[1721237823771,0.8110305,157.27,157.24,15.8991]
[1721237824084,0.8110305,157.27,157.25,6.3591]
[1721237824592,0.8110305,157.27,157.24,37.8386]
[1721237824798,0.8110305,157.27,157.24,15.8991]
[1721237824980,0.8110305,157.27,157.24,37.8388]
[1721237825588,0.8110305,157.27,157.24,15.8991]
[1721237825794,45.8110305,157.27,157.23,15.58]
[1721237825967,45.8110305,157.27,157.18,15.9046]
[1721237826171,6.3601,157.23,157.19,21.9414]
[1721237826580,6.3606,157.22,157.19,15.58]
[1721237827672,6.361,157.21,157.18,31.4846]
[1721237827866,21.9406,157.22,157.18,37.8467]
[1721237828093,6.3606,157.22,157.18,37.8467]
[1721237828571,6.3606,157.22,157.19,15.58]
[1721237828771,6.3609,157.21,157.18,15.9046]
[1721237829198,6.3609,157.21,157.18,31.4846]
[1721237829497,6.3606,157.22,157.18,37.8467]
[1721237829877,21.9402,157.23,157.18,37.8467]
[1721237830180,45.0,157.22,157.18,37.8467]
[1721237830389,51.3605,157.22,157.18,37.8467]
[1721237831089,0.8110305,157.27,157.19,1.27220806]
[1721237831290,7.1696305,157.27,157.23,21.94]
[1721237831680,7.1696305,157.27,157.23,15.58]
[1721237831884,6.359,157.26,157.23,15.58]
[1721237832983,22.7496305,157.27,157.23,6.36]
[1721237833794,22.7497305,157.27,157.23,6.36]
[1721237834000,6.359,157.26,157.22,37.841]
[1721237834583,6.359,157.26,157.23,1.27187557]
[1721237834994,22.7496305,157.27,157.23,1.27187557]
[1721237835197,7.1696305,157.27,157.23,23.21177557]
[1721237836604,7.1696305,157.27,157.23,16.85187557]
[1721237836900,7.1696305,157.27,157.23,16.85186836]
[1721237837277,6.3591,157.26,157.23,1.27186612]
[1721237837482,22.7495305,157.27,157.23,7.63186612]
[1721237837805,7.1695305,157.27,157.23,23.21186612]
[1721237838193,7.1695305,157.27,157.23,16.85186612]
[1721237838389,6.3589,157.26,157.23,16.85186612]
[1721237838798,6.3589,157.26,157.24,1.27186115]
[1721237839100,7.1695305,157.27,157.24,1.27186115]
[1721237839289,0.8110305,157.27,157.25,15.58]
[1721237839488,0.8110305,157.27,157.26,16.85172658]
[1721237841500,0.8110305,157.27,157.25,16.85164792]
[1721237841707,0.8110305,157.27,157.25,15.58]
[1721237842017,0.8110305,157.27,157.25,1.27168527]
[1721237842501,0.8110305,157.27,157.24,37.8381]
[1721237842893,0.8110305,157.27,157.25,1.2716885]
[1721237843206,0.8110305,157.27,157.26,15.58]
[1721237843599,0.8110305,157.27,157.25,23.2107885]
[1721237844107,0.8110305,157.27,157.24,37.8381]
[1721237844997,22.7496305,157.27,157.22,21.9401]
[1721237845602,6.3589,157.26,157.22,21.9401]
[1721237846206,5.68594736,157.26,157.22,21.9401]
[1721237846380,22.7496305,157.27,157.22,21.9401]
[1721237846886,22.7496305,157.27,157.23,6.3599]
[1721237847299,22.7496305,157.27,157.24,6.3595]
[1721237847300,0.8110305,157.27,157.24,6.3595]
[1721237847698,7.1695305,157.27,157.23,37.8398]
[1721237847887,22.7495305,157.27,157.23,37.8398]
[1721237848612,22.7495305,157.27,157.23,22.2598]
[1721237849424,16.3910305,157.27,157.24,7.63146729]
[1721237849717,0.8110305,157.27,157.24,6.3596]
[1721237850093,0.8110305,157.27,157.24,7.6314315]
[1721237850291,0.8110305,157.27,157.24,6.3596]
[1721237850693,0.8110305,157.27,157.24,7.63141182]
[1721237851205,0.8110305,157.27,157.24,7.63141163]
[1721237852118,0.8110305,157.27,157.24,6.3596]
[1721237852413,0.8110305,157.27,157.24,1.27183072]
[1721237852794,0.8110305,157.27,157.23,31.4798]
[1721237853012,7.1695305,157.27,157.23,23.53167637]
[1721237853219,7.1695305,157.27,157.23,39.11167637]
[1721237853507,0.8110305,157.27,157.24,6.3596]
[1721237853901,0.8110305,157.27,157.25,6.3591]
[1721237854099,0.8110305,157.27,157.25,21.9391]
[1721237854305,0.8110305,157.27,157.26,21.9388]
[1721237854897,0.8110305,157.27,157.26,23.21031428]
[1721237858435,15.8874,157.36,157.26,29.28401428]
[1721237858604,6.3537,157.39,157.35,15.58]
[1721237858923,12.2714305,157.43,157.35,21.9352]
[1721237859121,6.3536,157.39,157.35,6.3552]
[1721237859324,21.9333,157.4,157.35,21.9349]
[1721237859534,15.58,157.4,157.36,6.3548]
[1721237859707,15.58,157.4,157.35,15.58]
[1721237859902,6.3536,157.39,157.35,15.58]
[1721237860129,6.3536,157.39,157.34,15.8887]
[1721237860308,15.58,157.39,157.33,6.356]
[1721237860515,15.58,157.39,157.31,15.892]
[1721237860516,15.8821,157.41,157.32,15.58]
[1721237860720,21.9349,157.36,157.31,37.8286]
[1721237861118,21.9349,157.36,157.32,6.3563]
[1721237861319,6.3549,157.36,157.32,21.9363]
[1721237861519,15.0812,157.38,157.33,32.74060248]
[1721237861837,37.0153,157.38,157.34,6.3553]
[1721237862136,15.58,157.37,157.34,6.3553]
[1721237862840,37.0153,157.38,157.33,37.8253]
[1721237863044,15.58,157.37,157.33,37.8253]
[1721237863220,15.58,157.37,157.33,22.2453]
[1721237864142,6.3548,157.36,157.33,15.8894]
[1721237864340,15.58,157.37,157.33,17.16049843]
[1721237864521,15.58,157.37,157.33,23.51648006]
[1721237864844,21.9347,157.37,157.33,15.8894]
[1721237865143,21.9345,157.37,157.33,15.8894]
[1721237865355,21.9345,157.37,157.33,39.09640675]
[1721237865656,21.9345,157.37,157.33,37.8253]
[1721237866357,21.9345,157.37,157.33,15.8894]
[1721237866715,6.3549,157.36,157.32,21.9363]
[1721237866942,6.3545,157.37,157.32,21.9363]
[1721237867148,21.9345,157.37,157.32,21.9363]
[1721237867341,21.9345,157.37,157.33,6.356]
[1721237868735,21.9345,157.37,157.33,1.27109767]
[1721237868920,21.9345,157.37,157.33,1.27107419]
[1721237869524,6.3549,157.36,157.32,21.9363]
[1721237869920,21.9349,157.36,157.32,6.3563]
[1721237870324,6.3553,157.35,157.31,15.58]
[1721237870629,21.9349,157.36,157.32,7.6275323]
[1721237871132,21.9345,157.37,157.32,23.2075323]
[1721237871336,21.9345,157.37,157.33,6.356]
[1721237871516,15.58,157.37,157.33,6.356]
[1721237871722,15.58,157.38,157.34,15.8888]
[1721237871943,15.58,157.37,157.34,15.8888]
[1721237872242,21.9343,157.38,157.34,15.8888]
[1721237872441,6.3549,157.36,157.33,1.27102109]
[1721237872621,15.58,157.35,157.31,15.8914]
[1721237872962,6.3556,157.34,157.31,15.8914]
[1721237873455,21.9356,157.34,157.31,15.8914]
[1721237873620,15.58,157.34,157.31,15.8914]
[1721237874022,15.58,157.34,157.31,22.2482]
[1721237875864,15.58,157.32,157.27,31.4753]
[1721237876070,15.58,157.32,157.29,6.3576]
[1721237876240,6.3561,157.33,157.28,6.3579]
[1721237876241,15.58,157.31,157.28,6.3579]
[1721237876648,15.58,157.31,157.29,6.3576]
[1721237876952,15.58,157.3,157.28,6.3579]
[1721237877363,15.58,157.3,157.29,6.3576]
[1721237878774,15.58,157.3,157.28,6.3579]
[1721237879473,15.58,157.3,157.27,15.8953]
[1721237879474,15.58,157.3,157.27,22.2536]
[1721237880154,15.58,157.3,157.28,6.358]
[1721237880854,6.3561,157.33,157.28,6.358]
[1721237881268,6.3561,157.33,157.29,6.3574]
[1721237881269,15.58,157.31,157.29,6.3574]
[1721237881578,6.3557,157.34,157.3,6.3572]
[1721237881866,15.58,157.31,157.3,6.3572]
[1721237882456,15.58,157.31,157.29,22.2512]
[1721237883272,15.58,157.31,157.29,15.8937]
[1721237884078,15.58,157.31,157.29,22.2513]
[1721237884476,15.58,157.3,157.29,22.2513]
[1721237884670,6.3562,157.33,157.29,22.2513]
[1721237884671,15.58,157.31,157.29,22.2513]
[1721237885164,6.3562,157.33,157.29,22.2513]
[1721237885364,15.58,157.3,157.29,22.2513]
[1721237886173,6.3556,157.35,157.31,6.3567]
[1721237886380,15.58,157.32,157.31,6.3567]
[1721237888468,6.5347,157.37,157.32,15.8906]
[1721237888469,6.3548,157.37,157.32,15.8906]
[1721237888652,31.7431,157.4,157.32,22.2469]
[1721237888653,15.58,157.34,157.32,22.2469]
[1721237888855,15.58,157.35,157.33,6.3559]
[1721237889489,15.58,157.35,157.32,22.2469]
[1721237890287,21.9358,157.34,157.3,6.357]
[1721237890466,15.58,157.33,157.3,6.357]
[1721237890787,15.58,157.34,157.31,6.3568]
[1721237892375,6.3553,157.35,157.31,6.3568]
[1721237892573,15.8594,157.4,157.31,15.8918]
[1721237892772,81.44,157.44,157.31,15.8918]
[1721237892773,15.58,157.39,157.32,1.27105726]
[1721237892983,15.58,157.4,157.37,15.8859]
[1721237893279,6.3521,157.43,157.37,15.8859]
[1721237893475,15.58,157.4,157.38,6.3539]
[1721237893675,15.58,157.4,157.37,22.2402]
[1721237894476,15.58,157.39,157.37,15.8859]
[1721237895108,6.3529,157.41,157.37,22.2402]
[1721237895400,31.7422,157.45,157.37,15.8859]
[1721237895401,6.3523,157.43,157.37,15.8859]
[1721237895605,15.58,157.4,157.37,15.8859]
[1721237895897,15.58,157.39,157.37,6.3544]
[1721237896065,6.3523,157.43,157.38,6.3539]
[1721237896269,15.58,157.4,157.38,15.8843]
[1721237896674,15.58,157.4,157.35,15.8876]
[1721237896880,21.9333,157.4,157.35,15.8876]
[1721237897174,15.58,157.44,157.39,15.58]
[1721237897403,6.3507,157.47,157.42,6.3523]
[1721237897582,15.58,157.44,157.41,17.1518696]
[1721237897772,15.58,157.44,157.41,23.5045696]
[1721237898283,15.58,157.44,157.41,15.8815]
[1721237898497,6.3513,157.45,157.41,6.3528]
[1721237898811,15.58,157.44,157.4,6.3531]
[1721237899177,21.9317,157.44,157.4,6.3531]
[1721237899487,21.9317,157.44,157.39,21.9335]
[1721237899900,21.9317,157.44,157.4,6.3531]
[1721237900187,21.9313,157.45,157.4,15.58]
[1721237900398,21.9313,157.45,157.41,6.3527]
[1721237900598,15.16750126,157.48,157.41,6.3527]
[1721237900773,15.58,157.45,157.41,6.3527]
[1721237901576,15.58,157.45,157.4,37.8157]
[1721237901883,32.3452,157.49,157.4,31.4626]
[1721237902198,32.3452,157.49,157.4,22.2357]
[1721237902199,6.3518,157.44,157.4,22.2357]
[1721237902498,6.3518,157.44,157.4,15.8826]
[1721237902685,6.3518,157.44,157.4,17.1530121]
[1721237902891,6.3518,157.44,157.4,23.5061121]
[1721237903494,6.3513,157.45,157.41,6.3527]
[1721237903806,6.3513,157.45,157.4,23.5061121]
[1721237903980,6.3517,157.44,157.4,15.8826]
[1721237904184,6.3517,157.44,157.4,17.15303605]
[1721237904795,6.3517,157.44,157.35,25.3813]
[1721237904796,6.3539,157.39,157.35,6.2613]
[1721237905103,6.3539,157.39,157.35,28.1964]
[1721237905276,15.58,157.4,157.35,28.1964]
[1721237905480,21.9333,157.4,157.35,21.8413]
[1721237905686,21.9337,157.39,157.35,6.2613]
[1721237906075,6.3519,157.44,157.4,6.3531]
[1721237906271,6.3519,157.44,157.38,15.58]
[1721237906272,32.3453,157.49,157.38,31.4642]
[1721237906495,21.9312,157.45,157.41,6.3525]
[1721237906779,6.3517,157.44,157.4,31.4627]
[1721237906981,21.9312,157.45,157.4,31.4627]
[1721237907208,21.9312,157.45,157.41,1.26973242]
[1721237907388,6.3507,157.47,157.41,15.58]
[1721237907581,21.9311,157.46,157.42,15.8806]
[1721237908079,21.9311,157.46,157.42,22.2327]
[1721237908288,15.58,157.46,157.42,22.2327]
[1721237908691,15.58,157.46,157.43,6.3518]
[1721237908880,6.3505,157.47,157.43,6.3518]
[1721237909085,21.9305,157.47,157.43,7.62197661]
[1721237910404,6.3505,157.47,157.43,7.62197661]
[1721237911599,6.3501,157.48,157.43,7.62197661]
[1721237911903,6.3501,157.48,157.44,6.3514]
[1721237912202,17.27174258,157.52,157.46,6.3505]
[1721237912387,15.3439,157.53,157.46,22.2269]
[1721237912585,6.3492,157.5,157.46,22.2269]
[1721237912788,22.4636,157.54,157.48,6.35]
[1721237912789,17.02619444,157.54,157.48,6.35]
[1721237912991,6.3487,157.52,157.49,1.26978162]
[1721237913191,6.3489,157.51,157.47,6.3503]
[1721237913390,6.3488,157.51,157.46,37.9238]
[1721237913580,6.3488,157.51,157.47,6.3501]
[1721237913800,6.3488,157.51,157.48,1.26970027]
[1721237914004,6.3488,157.51,157.49,1.26968893]
[1721237914181,6.3484,157.52,157.49,1.26968893]
[1721237914997,6.3492,157.5,157.49,1.26968893]
[1721237915307,6.3488,157.51,157.46,37.9238]
[1721237915512,6.3492,157.5,157.46,37.9238]
[1721237916493,6.3489,157.51,157.47,6.3502]
[1721237916698,6.3489,157.51,157.46,37.9237]
[1721237916906,6.3489,157.51,157.47,0.17]
[1721237917121,6.3496,157.49,157.45,0.17]
[1721237917401,6.3491,157.51,157.45,6.691]
[1721237917606,6.3495,157.5,157.45,6.691]
[1721237917805,6.3496,157.49,157.45,6.691]
[1721237917990,6.3492,157.5,157.45,6.691]
[1721237918412,6.3492,157.5,157.46,6.3507]
[1721237919509,6.3489,157.51,157.46,6.3507]
[1721237919896,15.8676,157.56,157.48,6.1222]
[1721237920207,15.8676,157.56,157.49,1.26950752]
[1721237920408,2.71016497,157.58,157.5,16.3277]
[1721237920712,6.3474,157.55,157.51,1.26930537]
[1721237920885,6.3474,157.55,157.52,1.26935084]
[1721237921090,6.3469,157.56,157.52,1.26935084]
[1721237921291,2.71016497,157.58,157.52,1.26935084]
[1721237921499,15.8666,157.57,157.5,16.3277]
[1721237921904,6.3487,157.52,157.5,16.3277]
[1721237922293,6.349,157.51,157.48,6.1222]
[1721237923516,2.71016497,157.58,157.49,15.8733]
[1721237923710,2.71016497,157.58,157.51,6.3484]
[1721237924219,2.71016497,157.58,157.52,6.3483]
[1721237924399,6.347,157.56,157.51,6.3487]
[1721237924709,6.347,157.56,157.52,1.26939407]
[1721237924909,6.3473,157.55,157.51,6.3487]
[1721237925635,6.3477,157.54,157.49,15.8733]
[1721237925915,6.3477,157.54,157.5,6.3491]
[1721237926921,6.3477,157.54,157.51,1.26946451]
[1721237927215,6.3473,157.55,157.52,1.26945005]
[1721237927415,6.3468,157.56,157.52,7.61765005]
[1721237928594,6.3472,157.55,157.53,1.26934938]
[1721237929508,6.3467,157.56,157.53,1.26934938]
[1721237930017,9.05626497,157.58,157.53,1.26934938]
[1721237930213,9.05626497,157.58,157.54,6.3474]
[1721237930412,6.3466,157.57,157.53,32.2722]
[1721237931306,6.347,157.56,157.53,16.4025]
[1721237931817,6.347,157.56,157.54,1.26928968]
[1721237932215,6.3467,157.56,157.55,1.26929107]
[1721237933124,6.3475,157.54,157.5,15.8724]
[1721237933417,6.3475,157.54,157.5,22.2215]
[1721237933719,6.3472,157.55,157.51,6.3487]
[1721237934203,6.3469,157.56,157.51,6.3487]
[1721237934410,6.3464,157.57,157.53,6.3479]
[1721237934617,6.3464,157.57,157.54,1.26923745]
[1721237934796,9.05626497,157.58,157.55,1.26923638]
[1721237935216,6.3465,157.57,157.55,1.26923638]
[1721237935824,6.3465,157.57,157.56,1.26919169]
[1721237936021,6.3465,157.57,157.54,1.26919393]
[1721237936221,6.3465,157.57,157.55,1.26919785]
[1721237937217,6.3465,157.57,157.56,1.26919898]
[1721237937418,6.3465,157.57,157.54,1.26919959]
[1721237937621,6.3465,157.57,157.55,1.26920201]
[1721237937822,6.3467,157.56,157.53,1.26921844]
[1721237938126,9.05636497,157.58,157.54,6.3475]
[1721237938510,6.3463,157.57,157.55,1.26913487]
[1721237938715,2.71016497,157.58,157.56,7.61585113]
[1721237939503,2.71016497,157.58,157.56,6.3467]
[1721237939720,2.71016497,157.58,157.56,7.61568673]
[1721237939924,2.71016497,157.58,157.57,6.3463]
[1721237940122,2.71016497,157.58,157.57,6.5163]
[1721237941006,2.21016497,157.58,157.57,6.5163]
[1721237942010,2.21016497,157.58,157.55,21.7109]
[1721237942214,2.21016497,157.58,157.55,28.0579]
[1721237942716,6.3467,157.57,157.53,15.8695]
[1721237942931,6.3467,157.57,157.53,22.2173]
[1721237945223,6.3467,157.57,157.5,19.12]
[1721237945224,0.3110305,157.58,157.5,15.8724]
[1721237945828,6.3478,157.54,157.5,15.8724]
[1721237946726,6.3473,157.55,157.5,15.8724]
[1721237946934,6.3473,157.55,157.51,6.3484]
[1721237947109,6.3471,157.56,157.52,6.3483]
[1721237947308,0.3110305,157.58,157.53,1.26935365]
[1721237947512,0.3110305,157.58,157.55,6.3469]
[1721237947725,0.3110305,157.58,157.56,1.26901629]
[1721237948126,0.3110305,157.58,157.55,6.3469]
[1721237948433,0.3110305,157.58,157.54,22.2155]
[1721237948734,0.3110305,157.58,157.55,1.26910295]
[1721237948912,0.3110305,157.58,157.55,7.61590295]
[1721237949612,0.3110305,157.58,157.54,22.2158]
[1721237949613,6.6572305,157.58,157.54,22.2158]
[1721237950519,0.3110305,157.58,157.54,22.2158]
[1721237950719,0.3110305,157.58,157.55,6.347]
[1721237951116,0.3110305,157.58,157.56,7.61580308]
[1721237951327,0.3110305,157.58,157.56,1.26910308]
[1721237951831,0.3110305,157.58,157.56,7.61580308]
[1721237952032,0.3110305,157.58,157.56,1.26910308]
[1721237953527,0.3110305,157.58,157.55,6.3469]
[1721237954917,0.3110305,157.58,157.56,17.13552484]
[1721237955125,0.3110305,157.58,157.56,23.48212484]
[1721237955435,0.3110305,157.58,157.56,1.26902484]
[1721237955625,0.3110305,157.58,157.55,6.347]
[1721237955825,6.6570305,157.58,157.54,6.3474]
[1721237956720,0.3110305,157.58,157.55,6.3471]
[1721237956914,0.3110305,157.58,157.56,7.61560814]
[1721237957115,0.3110305,157.58,157.56,6.3465]
[1721237957616,0.3110305,157.58,157.56,6.3466]
[1721237957936,11.29116497,157.65,157.55,22.2143]
[1721237958418,15.8601,157.63,157.55,15.8673]
[1721237958743,15.8601,157.63,157.55,17.13635434]
[1721237959135,15.8601,157.63,157.55,15.8673]
[1721237959450,6.3454,157.6,157.56,7.61575458]
[1721237961026,6.3448,157.61,157.57,6.3463]
[1721237961229,6.3444,157.62,157.58,7.6148576]
[1721237962048,6.3448,157.61,157.58,1.2689576]
[1721237962552,6.3455,157.59,157.55,6.3471]
[1721237962717,6.3451,157.61,157.56,6.3465]
[1721237962921,6.3452,157.6,157.56,6.3465]
[1721237963222,6.3449,157.61,157.57,1.26906494]
[1721237963417,6.3449,157.61,157.57,7.61526494]
[1721237963618,11.29116497,157.65,157.58,17.1335635]
[1721237963834,11.29116497,157.65,157.59,1.26895957]
[1721237964141,6.3444,157.62,157.59,1.26895957]
[1721237964523,11.29116497,157.65,157.59,1.26895957]
[1721237965316,6.3444,157.62,157.59,1.26895957]
[1721237966349,15.48,157.61,157.59,1.26895957]
[1721237966530,21.8248,157.61,157.59,1.26895957]
[1721237966734,21.8248,157.61,157.58,15.8645]
[1721237967152,15.48,157.6,157.55,31.3471]
[1721237967334,6.3452,157.6,157.56,6.3466]
[1721237967538,21.8252,157.6,157.57,1.26906535]
[1721237967941,15.48,157.59,157.56,6.3466]
[1721237968146,15.48,157.59,157.55,15.8671]
[1721237968342,15.48,157.59,157.56,6.3467]
[1721237968755,6.3452,157.6,157.53,16.6071]
[1721237968756,21.8264,157.57,157.53,16.6071]
[1721237968934,15.48,157.57,157.55,6.3471]
[1721237969134,15.48,157.58,157.55,6.3471]
[1721237969840,15.48,157.58,157.54,22.2159]
[1721237970048,15.48,157.55,157.51,15.8714]
[1721237970352,6.346,157.58,157.53,6.3476]
[1721237970550,15.48,157.56,157.53,6.3476]
[1721237970762,15.48,157.56,157.53,5.8476]
[1721237971052,6.3459,157.58,157.54,6.3475]
[1721237971451,6.3459,157.58,157.53,22.2174]
[1721237971756,6.3466,157.57,157.53,22.2174]
[1721237971951,61.92,157.6,157.53,22.2174]
[1721237972259,6.346,157.58,157.53,22.2174]
[1721237972936,61.92,157.6,157.53,22.2174]
[1721237973136,6.3464,157.57,157.53,22.2174]
[1721237973852,6.346,157.58,157.54,6.3475]